[Event "Winter Malopolska Cup Master 2022"]
[Site "Krakow"]
[Date "2022.01.20"]
[Round "9.5"]
[White "Czaplak, Lukasz"]
[Black "Szopa, Emilia"]
[Result "1-0"]
[ECO "B13"]
[WhiteElo "1877"]
[BlackElo "1588"]
[Annotator "NA RC"]
[PlyCount "137"]
[EventDate "2022.01.15"]
[EventType "swiss"]
[EventCountry "POL"]
[SourceTitle "playchess.com"]
[Source "ChessBase"]
[SourceQuality "1"]
[TimeControl "5400+30"]

{[%evp 8,136,14,6,25,15,28,17,32,25,45,6,4,22,15,25,6,12,17,16,53,28,35,46,31,51,72,69,50,57,91,94,86,36,43,20,78,87,111,83,143,118,150,125,116,121,313,302,269,344,433,190,175,188,161,188,201,203,257,231,254,90,89,32767,32767,32767,106,94,97,102,98,90,83,87,168,131,32767,32767,32767,32767,32767,32767,32767,32767,293,370,351,32767,32767,32767,32767,32767,32767,32767,32767,32767,32767,32767,1688,741,843,656,697,32767,32767,32767,32767,32767,32767,32767,32767,32767,32767,32767,32767,29988,29988,29989,27998,29990,29990,29989,29990,29991,27999,27997,29990,29989,29990,29990,29990]} 1. e4 {[%emt 0:00:01]} c6 {[%emt 0:00:08]} 2. d4 {[%emt 0:00:04]} d5 {[%emt 0:00:07]} 3. exd5 {[%emt 0:00:04]} cxd5 {[%emt 0:00:10]} 4. Bf4 {[%emt 0:00:06]} Nc6 {[%emt 0:05:24]} 5. c3 {[%emt 0:02:00]} g6 {[%emt 0:00:26]} 6. Nf3 {[%emt 0:01:11]} Bg7 {[%emt 0:02:43]} 7. Nbd2 {[%emt 0:02:27]} Nf6 {[%emt 0:01:38]} 8. h3 {[%emt 0:02:40]} a6 {[%emt 0:02:31]} 9. Ne5 {[%emt 0:06:58]} Nd7 {[%emt 0:07:26]} 10. Nxd7 {[%emt 0:09:12]} Bxd7 {[%emt 0:04:54]} 11. Qb3 {[%emt 0:06:09]} Bc8 {[%emt 0:01:47]} 12. Be2 {[%emt 0:08:29]} Na5 {[%emt 0:10:40]} 13. Qd1 {[%emt 0:03:25]} Qb6 {[%emt 0:07:04]} 14. b4 {[%emt 0:08:13]} Nc6 {[%emt 0:07:32]} 15. Nb3 {[%emt 0:08:35]} O-O {[%emt 0:06:59]} 16. O-O {[%emt 0:02:37]} Nd8 {[%emt 0:03:51]} 17. Bf3 {[%emt 0:03:51]} Ne6 {[%emt 0:03:34]} 18. Bd2 {[%emt 0:00:40]} Rd8 {[%emt 0:01:30]} (18... Qd6 $14) 19. Re1 {[%emt 0:02:06]} Qc7 {[%emt 0:01:18] [#]} 20. g3 {[%emt 0:02:59]} ({White should play} 20. a4 $1 $16) 20... h6 {[%emt 0:05:17]} 21. Qe2 {[%emt 0:03:58]} (21. h4 $14 {is more appropriate.}) 21... Kh7 {[%emt 0:01:52]} (21... b6 $14 {is superior.}) 22. h4 {[%emt 0:07:25]} Ra7 {[%emt 0:04:42]} 23. h5 {[%emt 0:01:28]} Bf6 {[%emt 0:02:17]} ({Black should play} 23... b6) 24. hxg6+ {[%emt 0:03:04]} ({Don't take} 24. Qe3 Ng5 $16) 24... fxg6 {[%emt 0:00:37]} 25. Bg4 {[%emt 0:03:53]} ({But not} 25. Qe3 Ng5 $16) 25... Ng5 {[%emt 0:02:44]} 26. Bxg5 {[%emt 0:00:56]} Bxg4 $2 {[%emt 0:07:46]} (26... hxg5 $16 27. Bxc8 Qxc8) 27. Qxg4 {[%emt 0:01:09]} Bxg5 {[%emt 0:00:18]} 28. Nc5 {[%emt 0:00:58]} Qc8 {[%emt 0:00:13]} 29. Qf3 $2 {[%emt 0:03:30]} (29. Ne6 b5 30. f4) 29... Qf5 {[%emt 0:03:36]} 30. Qxf5 {[%emt 0:02:03]} gxf5 {[%emt 0:00:06]} 31. Ne6 {[%emt 0:00:19]} Re8 {[%emt 0:00:24]} 32. Re5 {[%emt 0:01:28]} Bd2 {[%emt 0:01:04]} (32... b6 $142 33. Nxg5+ (33. Rxd5 Bd2 $18) (33. Rxf5 Bd2 $16) 33... hxg5 34. Rxf5 e6 35. Rxg5 Rg7) 33. Nc7 {[%emt 0:01:41]} ({But not} 33. Rxd5 $6 Bxc3 34. Rb1 Kg6) 33... Bxc3 {[%emt 0:00:26] [#]} 34. Rc1 $2 {[%emt 0:00:17]} ({Less strong is} 34. Nxe8 Bxa1 35. Rxe7+ Kg8 $16) (34. Rd1 $1 $18 Rd8 35. Nxd5) 34... Bxd4 {[%emt 0:00:46]} 35. Rxd5 {[%emt 0:00:06]} Bb2 {[%emt 0:00:31]} 36. Re1 {[%emt 0:00:50]} Rg8 {[%emt 0:01:30]} 37. Rxe7+ {[%emt 0:01:13]} Rg7 {[%emt 0:00:11]} 38. Rxg7+ {[%emt 0:00:06]} Bxg7 {[%emt 0:00:38]} 39. Rxf5 {[%emt 0:00:16]} b5 {[%emt 0:00:26]} 40. Nd5 {[%emt 0:01:32]} Rd7 {[%emt 0:00:40]} (40... Bb2 $16 {is a better defense.}) 41. Nf6+ {[%emt 0:00:25]} Bxf6 {[%emt 0:00:10]} 42. Rxf6 {[%emt 0:00:01]} Ra7 {[%emt 0:00:31]} 43. Rb6 {[%emt 0:00:28]} Kg7 {[%emt 0:01:22]} 44. Kg2 {[%emt 0:00:08]} Kh7 {[%emt 0:00:25]} 45. Kh3 {[%emt 0:00:17]} a5 {[%emt 0:01:20] [#]} 46. a3 $1 {[%emt 0:00:17]} axb4 {[%emt 0:00:06]} 47. axb4 {[%emt 0:00:07]} Rf7 {[%emt 0:00:05]} 48. f4 {[%emt 0:01:23]} Rf5 {[%emt 0:00:09]} 49. Kg4 {[%emt 0:00:22]} Rd5 {[%emt 0:00:13]} 50. Kh4 {[%emt 0:01:08]} Rf5 {[%emt 0:02:16]} 51. Rb7+ {[%emt 0:00:52]} Kg6 {[%emt 0:00:51]} 52. Rc7 {[%emt 0:01:29]} h5 {[%emt 0:01:45]} 53. Rc6+ {[%emt 0:00:11]} Kg7 {[%emt 0:00:22]} 54. Re6 {[%emt 0:00:21]} Kf7 {[%emt 0:00:47]} 55. Re5 {[%emt 0:00:47]} Rxe5 {[%emt 0:00:11]} 56. fxe5 {[%emt 0:00:04]} Ke6 {[%emt 0:00:07]} 57. Kxh5 {[%emt 0:00:04]} Kxe5 {[%emt 0:00:05]} 58. g4 {[%emt 0:00:16]} Kd4 {[%emt 0:00:09]} 59. g5 {[%emt 0:00:05]} Kc4 {[%emt 0:00:06]} 60. g6 {[%emt 0:00:03]} Kxb4 {[%emt 0:00:07]} 61. g7 {[%emt 0:00:12]} Ka3 {[%emt 0:00:22]} 62. g8=Q {[%emt 0:00:07]} b4 {[%emt 0:00:10]} 63. Qa8+ {[%emt 0:01:16]} Kb2 {[%emt 0:00:24]} 64. Qg2+ {[%emt 0:00:11]} Ka1 {[%emt 0:00:27]} 65. Qf1+ {[%emt 0:00:52]} Ka2 {[%emt 0:00:19]} 66. Qe2+ {[%emt 0:00:06]} Ka3 {[%emt 0:00:33]} 67. Qd1 {[%emt 0:00:26]} Kb2 {[%emt 0:00:36]} 68. Qd2+ {[%emt 0:00:10]} Ka3 {[%emt 0:00:14]} 69. Qc2 {[%emt 0:00:21]} 1-0